bitfinex-derivatives/quotes_ETHF0:USTF0_20251103
["timestamp","ask_amount","ask_price","bid_price","bid_amount"]
[1762130750773,0.56161515,3892.8,3892.7,9.14364654]
[1762130753276,0.56161515,3892.8,3892.7,9.13964654]
[1762130756476,1.86789003,3892.8,3892.7,0.00244654]
[1762130756877,0.1352,3891.5,3891.3,3.2078]
[1762130757182,0.59779,3891.5,3891.3,3.2078]
[1762130757378,0.81999,3891.5,3891.4,8.979]
[1762130757689,1.38295494,3891.5,3891.4,8.979]
[1762130757888,1.38295494,3891.5,3891.4,8.98108114]
[1762130758284,0.69816494,3891.5,3891.4,0.16338114]
[1762130758485,0.69816494,3891.5,3891.4,9.14238114]
[1762130759284,0.1352,3892.0,3891.4,9.14238114]
[1762130759585,0.56235786,3891.9,3891.8,0.1613]
[1762130759788,0.3574,3891.5,3891.4,0.00208114]
[1762130759982,0.1352,3890.5,3890.4,5.0683]
[1762130760288,0.59785,3891.0,3890.5,0.4627]
[1762130760480,0.1352,3891.0,3890.9,0.1613]
[1762130760676,0.69758095,3891.0,3890.9,9.1533]
[1762130760881,0.1352,3890.5,3890.4,8.992]
[1762130761389,0.1352,3890.5,3890.4,8.99530159]
[1762130761585,0.3574,3890.5,3890.4,0.00330159]
[1762130761792,0.9190351,3890.5,3890.4,0.00330159]
[1762130763088,0.3574,3890.5,3890.4,0.00330159]
[1762130766002,3.2078,3890.8,3890.7,0.1613]
[1762130766203,3.2078,3890.8,3890.7,5.1623]
[1762130768001,0.59785,3891.0,3890.7,5.1623]
[1762130769307,0.59785,3891.0,3890.7,5.62497]
[1762130769606,0.1352,3891.5,3891.4,0.1613]
[1762130769998,0.1352,3891.5,3891.4,9.1523]
[1762130770403,0.46256,3891.8,3891.4,9.1523]
[1762130770898,0.46256,3891.8,3891.7,0.1613]
[1762130772901,0.68476,3891.8,3891.7,0.1613]
[1762130773101,0.68476,3891.8,3891.4,8.991]
[1762130773300,4.29187488,3892.1,3891.5,0.46258]
[1762130773301,0.46254,3891.9,3891.5,0.46258]
[1762130773605,4.29187488,3892.1,3891.5,0.46258]
[1762130773606,0.68476,3891.8,3891.5,0.46258]
[1762130773907,0.1352,3891.5,3891.4,0.1613]
[1762130774301,0.6848,3891.4,3891.3,3.2078]
[1762130774505,0.6848,3891.4,3891.3,9.4008]
[1762130776704,0.6848,3891.4,3891.3,6.193]
[1762130777804,0.1352,3891.5,3891.1,3.2078]
[1762130777997,0.1352,3891.5,3891.4,0.1617]
[1762130778198,0.2332,3891.3,3891.2,5.39]
[1762130778406,0.1352,3891.5,3891.3,0.46261]
[1762130778799,0.59779,3891.5,3891.2,5.39]
[1762130779005,0.4626,3891.4,3891.3,0.1617]
[1762130779207,0.46261,3891.3,3891.1,3.2078]
[1762130779412,0.69581,3891.3,3891.2,8.984]
[1762130779811,1.68186488,3891.5,3891.2,9.60832]
[1762130781010,1.21927488,3891.5,3891.4,0.1617]
[1762130782215,1.21927488,3891.5,3891.2,8.984]
[1762130782216,0.4626,3891.4,3891.2,8.984]
[1762130782615,0.4626,3891.4,3891.2,9.44662]
[1762130782817,1.68186488,3891.5,3891.2,9.44662]
[1762130783819,0.4626,3891.4,3891.2,9.44662]
[1762130784013,0.4626,3891.4,3891.3,8.978]
[1762130784213,0.4626,3891.4,3891.3,8.977]
[1762130784808,0.4626,3891.4,3891.1,3.2078]
[1762130784809,0.2314,3891.2,3891.1,3.2078]
[1762130785004,0.2314,3891.2,3891.1,12.1848]
[1762130785419,0.46261,3891.4,3891.1,12.1848]
[1762130785420,1.21927488,3891.5,3891.3,0.46261]
[1762130785620,1.68186488,3891.5,3891.3,0.46261]
[1762130786121,0.46261,3891.4,3891.1,12.64743]
[1762130786417,0.46261,3891.3,3891.1,12.64743]
[1762130787115,0.46261,3891.3,3891.1,12.1848]
[1762130787321,0.46261,3891.3,3891.1,12.64743]
[1762130787521,1.68186488,3891.5,3891.2,0.46261]
[1762130788324,0.4626,3891.4,3891.2,0.46261]
[1762130788618,0.4626,3891.4,3891.3,8.972]
[1762130788807,0.4626,3891.4,3891.2,0.46261]
[1762130789008,0.4626,3891.4,3891.3,8.972]
[1762130789418,0.4626,3891.4,3891.2,0.46261]
[1762130789624,0.694,3891.4,3891.3,8.972]
[1762130790016,0.694,3891.4,3891.1,3.67043]
[1762130790217,0.694,3891.4,3891.2,0.46261]
[1762130790419,1.68186488,3891.5,3891.3,0.1618]
[1762130791123,1.68186488,3891.5,3891.3,0.62441]
[1762130791818,0.1352,3891.5,3891.4,0.1618]
[1762130792121,3.2078,3891.9,3891.8,0.1618]
[1762130792312,4.00119231,3891.9,3891.8,0.1618]
[1762130792513,4.00119231,3891.9,3891.7,9.43155]
[1762130792713,3.2078,3891.9,3891.8,0.1618]
[1762130793018,3.76980554,3891.9,3891.8,0.1618]
[1762130794416,0.46255,3891.8,3891.7,8.969]
[1762130794622,1.02455554,3891.8,3891.7,8.969]
[1762130795120,1.02543324,3891.8,3891.7,8.969]
[1762130795312,3.4392,3891.9,3891.8,0.46255]
[1762130795515,4.00209584,3891.9,3891.8,0.46255]
[1762130795715,4.00209584,3891.9,3891.7,8.969]
[1762130795915,0.56289584,3891.8,3891.7,9.1308]
[1762130796920,0.56289584,3891.8,3891.7,12.3386]
[1762130797119,0.1352,3892.0,3891.9,0.1618]
[1762130797425,0.6984035,3892.0,3891.9,0.1618]
[1762130803419,0.6984035,3892.0,3891.8,0.46255]
[1762130803420,0.2314,3891.9,3891.8,0.46255]
[1762130807327,0.2314,3891.9,3891.7,9.43156]
[1762130807831,0.2314,3891.8,3891.7,9.43156]
[1762130808629,0.2314,3891.8,3891.7,0.46256]
[1762130808833,0.2314,3891.8,3891.7,9.41256]
[1762130809334,0.2203,3891.6,3891.5,0.46258]
[1762130809634,1.16756782,3891.6,3891.5,9.41258]
[1762130811426,0.2203,3891.3,3891.2,3.67042]
[1762130811631,0.2203,3891.3,3891.2,12.62042]
[1762130812530,0.1309,3891.5,3891.4,0.6255]
[1762130812731,1.40981782,3891.9,3891.6,0.46257]
[1762130813042,0.78258182,3891.8,3891.7,8.95]
[1762130813738,0.2203,3891.1,3891.0,0.46264]
[1762130813941,0.1309,3891.0,3890.8,3.67046]
[1762130814239,0.1309,3891.0,3890.9,8.95]
[1762130814932,0.59355,3891.0,3890.8,3.2078]
[1762130815136,0.59355,3891.0,3890.4,0.00330159]
[1762130815137,0.3512,3890.5,3890.4,0.00330159]
[1762130815334,1.29846782,3890.5,3890.4,8.95330159]
[1762130815526,1.86078066,3890.5,3890.4,8.95330159]
[1762130816031,1.29846782,3890.5,3890.4,9.11620159]
[1762130820443,1.29846782,3890.5,3890.4,0.00330159]
[1762130820642,1.29846782,3890.5,3890.4,8.95430159]
[1762130821138,0.1309,3891.0,3890.4,8.95430159]
[1762130821139,0.1309,3891.0,3890.7,0.1629]
[1762130821440,0.56131596,3890.9,3890.7,8.951]
[1762130821638,0.56131596,3890.8,3890.7,8.951]
[1762130821840,1.72888378,3890.8,3890.7,8.951]
[1762130822539,1.72888378,3890.8,3890.7,9.1139]
[1762130822540,1.50858378,3890.8,3890.7,9.1139]
[1762130822735,2.19155378,3890.8,3890.7,8.951]
[1762130823044,1.50858378,3890.8,3890.7,8.951]
[1762130823942,1.50858378,3890.8,3890.6,0.46269]
[1762130824137,1.63023782,3890.8,3890.7,8.951]
[1762130824741,2.19128723,3890.8,3890.7,8.951]
[1762130824941,1.63023782,3890.8,3890.7,8.951]
[1762130825841,0.3512,3890.5,3890.4,0.00330159]
[1762130826339,0.1309,3889.5,3889.4,1.09696068]
[1762130826542,0.3512,3889.5,3889.4,0.47123068]
[1762130827331,0.3512,3889.5,3889.4,0.47332792]
[1762130827332,0.35321599,3889.5,3889.4,0.47332792]
[1762130830039,1.16756782,3888.9,3888.7,4.72]
[1762130830244,1.16756782,3888.9,3888.6,4.72]
[1762130830631,0.46291,3888.8,3888.6,4.72]
[1762130830835,0.2203,3888.7,3888.6,4.72]
[1762130831142,0.2203,3888.7,3888.6,4.72304891]
[1762130831340,0.2203,3888.7,3888.6,0.00304891]
[1762130831941,3.4281,3888.7,3888.6,0.00304891]
[1762130835040,0.2203,3888.7,3888.6,0.00304891]
[1762130835247,3.4281,3888.7,3888.6,0.00304891]
[1762130836846,3.63218482,3888.7,3888.6,0.00304891]
[1762130838448,3.4281,3888.7,3888.6,0.00304891]
[1762130844160,0.2271,3887.4,3887.3,8.956]
[1762130844457,0.2271,3887.4,3886.6,3.2078]
[1762130844458,0.2271,3887.3,3886.6,3.2078]
[1762130844758,0.94726782,3886.9,3886.8,0.1649]
[1762130845159,0.94726782,3886.9,3886.8,0.16730621]
[1762130845860,0.135,3887.0,3886.9,0.46313]
[1762130846059,0.135,3887.0,3886.9,9.41913]
[1762130846557,0.135,3887.0,3886.9,0.62803]
[1762130846759,0.135,3887.0,3886.9,9.58403]
[1762130847365,0.3667,3887.0,3886.9,9.58403]
[1762130847553,0.3667,3887.0,3886.9,0.62803]
[1762130847758,0.3667,3887.0,3886.9,9.58503]
[1762130848060,0.3667,3887.0,3886.9,0.46313]
[1762130848264,0.3667,3887.0,3886.9,9.42013]
[1762130849653,0.135,3887.0,3886.9,9.58503]
[1762130850658,0.94726782,3887.9,3887.4,0.1649]
[1762130850871,0.94726782,3887.9,3887.8,0.1649]
[1762130851074,0.94726782,3887.9,3887.8,0.62792]
[1762130851962,3.3358,3888.0,3887.8,0.46302]
[1762130852168,3.3358,3888.0,3887.9,0.1649]
[1762130852566,0.128,3888.0,3887.9,0.1649]
[1762130855379,0.94726782,3888.2,3888.1,0.1649]
[1762130855577,4.28306782,3888.5,3888.2,0.46298]
[1762130855781,0.56312596,3888.4,3888.3,0.62786]
[1762130856075,0.3667,3888.0,3887.9,3.2078]
[1762130856279,0.3667,3888.0,3887.9,12.1658]
[1762130857779,0.3667,3888.0,3887.9,3.2078]
[1762130857974,0.3667,3888.0,3887.9,12.1658]
[1762130859268,0.93096282,3888.0,3887.9,12.1658]
[1762130859466,0.93096282,3888.0,3887.8,8.958]
[1762130859467,0.69926282,3888.0,3887.8,8.958]
[1762130859676,0.56426282,3887.9,3887.8,9.58592]
[1762130860476,0.56426282,3887.9,3887.8,0.1649]
[1762130860676,0.56426282,3887.9,3887.8,9.1229]
[1762130865380,0.79596282,3887.9,3887.8,9.1229]
[1762130868882,0.2157,3887.4,3887.3,3.2078]
[1762130869181,0.2157,3887.4,3887.3,10.5408]
[1762130869182,1.86649958,3887.4,3887.3,10.5408]
[1762130869383,0.77919604,3887.4,3887.3,10.5408]
[1762130869575,0.77919604,3887.4,3887.3,7.333]
[1762130870278,0.56349604,3887.4,3887.3,7.4978]
[1762130871686,3.2078,3887.8,3887.7,0.1648]
[1762130871887,3.77160232,3887.8,3887.7,9.1228]
[1762130875480,3.98730232,3887.8,3887.7,9.1228]
[1762130875680,3.98730232,3887.8,3887.7,8.958]
[1762130876483,0.1392,3887.5,3887.4,0.62787]
[1762130876690,0.70300232,3887.5,3887.4,9.1228]
[1762130876884,0.91870232,3887.5,3887.4,8.958]
[1762130877082,2.00600586,3887.5,3886.9,3.2078]
[1762130877288,0.1392,3887.0,3886.9,3.83573]
[1762130877480,0.1392,3887.0,3886.9,12.79373]
[1762130879491,0.1392,3887.0,3886.9,3.83573]
[1762130879992,0.3549,3887.0,3886.9,12.62893]
[1762130880190,0.1392,3887.0,3886.9,3.83573]
[1762130880384,0.1392,3887.0,3886.9,12.79373]
[1762130880584,0.1392,3887.0,3886.9,3.83573]
[1762130880885,0.3549,3887.0,3886.9,3.3726]
[1762130881090,0.3549,3887.0,3886.9,12.1658]
[1762130881491,0.1392,3887.0,3886.9,3.3726]
[1762130881790,0.1392,3887.0,3886.9,12.3306]
[1762130882183,0.2157,3886.9,3886.8,0.00240621]
[1762130882392,1.07094044,3886.9,3886.8,0.00240621]
[1762130882582,1.27327013,3886.9,3886.8,0.00240621]
[1762130882782,1.07094044,3886.9,3886.8,8.96040621]
[1762130883188,1.07094044,3886.9,3886.8,0.00240621]
[1762130883693,1.07094044,3886.9,3886.0,0.46324]
[1762130883886,1.22650354,3886.5,3886.1,8.958]
[1762130884085,1.22650354,3886.5,3886.2,0.1648]
[1762130884294,1.68969354,3886.5,3886.3,8.958]
[1762130884491,0.2157,3886.4,3886.3,8.958]
[1762130884886,0.21808914,3886.4,3886.3,0.0019149]
[1762130885088,0.21808914,3886.4,3886.3,8.9599149]
[1762130885288,0.00238914,3886.4,3886.3,9.1247149]
[1762130885582,0.21808914,3886.4,3886.3,0.0019149]
[1762130885789,0.21808914,3886.4,3886.3,8.9599149]
[1762130887089,0.50964701,3886.4,3886.3,0.0019149]
[1762130887285,0.50959173,3886.4,3886.3,0.0019149]
[1762130887486,1.07302312,3886.4,3886.3,0.0019149]
[1762130888098,0.1392,3886.0,3885.5,3.2078]
[1762130888393,0.67899,3885.6,3885.5,3.2078]
[1762130888594,0.67899,3885.6,3885.5,12.1658]
[1762130888896,0.67899,3885.6,3885.5,8.958]
[1762130889091,0.67899,3885.6,3885.5,0.00267507]
[1762130889397,0.2157,3885.6,3885.5,0.00267507]
[1762130890082,0.1392,3886.0,3885.6,0.1648]
[1762130890282,0.1392,3886.0,3885.8,0.1648]
[1762130890283,0.75443441,3885.9,3885.8,0.1648]
[1762130890688,0.29117441,3885.9,3885.8,0.1648]
[1762130891288,0.97013441,3885.9,3885.6,0.46329]
[1762130891491,0.67896,3885.9,3885.6,0.46329]
[1762130891792,0.2157,3885.7,3885.5,0.00267507]
[1762130892093,0.1392,3886.0,3885.9,0.46325]
[1762130892288,3.2078,3886.1,3886.0,0.1648]
[1762130892488,3.49881332,3886.1,3886.0,0.1648]
[1762130892998,0.29101332,3886.1,3886.0,0.1648]
[1762130893295,0.46321,3886.3,3886.0,0.1648]
[1762130893497,0.29096956,3886.2,3886.1,0.46323]
[1762130893697,0.29096956,3886.2,3886.1,0.62803]
[1762130894186,0.00238914,3886.4,3886.3,0.1648]
[1762130894390,0.29335201,3886.4,3886.3,0.1648]
[1762130894887,0.50905201,3886.4,3885.6,3.2078]
[1762130895097,0.1306,3886.0,3885.8,0.46326]
[1762130895295,0.46325,3885.9,3885.5,0.00267507]
[1762130895497,0.46325,3885.9,3885.6,9.42328]
[1762130895696,0.2239,3885.7,3885.6,9.42328]
[1762130895897,0.2239,3885.7,3885.6,8.96]
[1762130896298,0.2239,3885.6,3885.5,8.96267507]
[1762130896494,1.55057354,3885.8,3885.5,9.59086507]
[1762130896797,1.08730354,3885.8,3885.6,0.46328]
[1762130896998,1.08730354,3885.8,3885.7,0.1649]
[1762130898904,0.46326,3885.9,3885.7,0.1649]
[1762130899106,0.1306,3886.0,3885.7,0.1649]
[1762130899404,0.59385,3886.0,3885.7,0.1649]
[1762130899599,0.46326,3885.9,3885.7,0.1649]
[1762130900607,0.2239,3885.8,3885.6,9.42328]
[1762130901005,0.46326,3885.9,3885.7,0.1649]
[1762130901503,0.1306,3886.0,3885.6,0.46328]
[1762130901701,0.1306,3886.0,3885.8,0.46326]
[1762130901908,0.1306,3886.0,3885.9,0.1649]
[1762130902602,0.1306,3886.0,3885.9,0.62815]
[1762130903706,0.00238914,3886.4,3886.3,0.1649]
[1762130904009,1.02927167,3886.4,3886.3,0.1649]
[1762130904211,0.46321,3886.3,3886.1,8.96]
[1762130904406,0.29121115,3886.2,3886.1,8.96]
[1762130904709,0.29121115,3886.2,3886.1,9.1249]
[1762130907303,0.00238914,3886.4,3886.3,0.165]
[1762130907507,0.75700903,3886.4,3886.3,0.165]
[1762130907699,1.32108302,3886.4,3886.3,0.165]
[1762130909003,0.85788302,3886.4,3886.3,0.165]
[1762130909896,0.29380903,3886.4,3886.3,0.165]
[1762130913814,0.52610903,3886.4,3886.1,3.2078]
[1762130914002,0.98692989,3886.3,3886.2,8.959]
[1762130914206,0.52371989,3886.3,3886.2,8.959]
[1762130914502,0.52371989,3886.3,3886.2,9.124]
[1762130914911,0.52371989,3886.3,3886.2,0.165]
[1762130915201,0.00238914,3886.4,3886.3,0.165]
[1762130915400,0.00238914,3886.4,3886.3,8.959]
[1762130915608,0.2953007,3886.4,3886.3,9.124]
[1762130917312,0.00238914,3886.4,3886.3,9.124]
[1762130917908,1.22650354,3887.5,3887.4,0.1626]
[1762130917909,0.1392,3887.5,3887.4,0.1626]
[1762130918113,3.2078,3887.9,3887.7,0.1626]
[1762130918304,0.1389,3887.5,3887.4,9.1216]
[1762130918509,0.3712,3887.5,3887.4,8.959]
[1762130918910,0.37393984,3887.5,3887.4,8.959]
[1762130919816,0.83700984,3887.5,3887.4,8.958]
[1762130920114,0.14163984,3887.5,3887.4,9.1206]
[1762130921910,0.14163984,3887.5,3887.4,8.958]
[1762130921911,0.37393984,3887.5,3887.4,8.958]
[1762130922116,0.60469984,3887.5,3887.4,8.958]
[1762130922318,0.1389,3887.0,3886.6,3.2078]
[1762130922510,1.00205491,3887.0,3886.7,9.42015]
[1762130922709,1.00205491,3887.0,3886.7,0.46315]
[1762130923017,0.2323,3886.9,3886.8,8.943]
[1762130923204,0.2323,3886.7,3886.6,3.2078]
[1762130923407,0.2323,3886.7,3886.6,12.1648]
[1762130923912,1.46518491,3887.0,3886.6,12.79056]
[1762130924113,1.00205491,3887.0,3886.6,12.3274]
[1762130924315,1.00205491,3887.0,3886.6,9.1196]
[1762130924918,0.46315,3886.8,3886.6,9.1196]
[1762130926320,0.2323,3886.7,3886.5,0.46318]
[1762130926510,0.2323,3886.7,3886.6,8.957]
[1762130927116,0.46315,3886.8,3886.6,9.1194]
[1762130927320,0.46314,3886.9,3886.7,9.58255]
[1762130928412,0.67584,3886.9,3886.8,8.957]
[1762130928720,0.96820456,3886.9,3886.8,8.957]
[1762130928915,0.50506456,3886.9,3886.5,0.46317]
[1762130929215,0.2127,3886.7,3886.6,8.957]
[1762130929411,1.00205491,3887.0,3886.6,9.1194]
[1762130929615,0.2923368,3886.9,3886.7,0.46315]
[1762130929809,3.2078,3887.1,3887.0,0.1624]
[1762130930011,0.29233258,3887.1,3887.0,9.1194]
[1762130935718,0.85548092,3887.1,3887.0,9.1194]
[1762130935920,0.29233258,3887.1,3887.0,9.1194]
[1762130936125,1.06817946,3887.1,3887.0,9.1194]
[1762130937231,1.93133437,3887.1,3887.0,8.957]
[1762130939933,0.1389,3887.0,3886.4,0.1624]
[1762130940238,1.21475491,3886.5,3886.4,0.1624]
[1762130940442,1.50708749,3886.5,3886.4,8.5934]
[1762130940739,0.64393258,3886.5,3886.4,8.5934]
[1762130940934,0.43123258,3886.5,3886.4,8.5934]
[1762130944942,0.43123258,3886.5,3886.4,9.1184]
[1762130945737,1.29438749,3886.5,3886.4,9.1184]
[1762130946435,1.29438749,3886.5,3886.4,0.1624]
[1762130946636,1.29438749,3886.5,3886.4,9.1184]
[1762130946836,1.29438749,3886.5,3886.4,0.1624]
[1762130947140,1.29438749,3886.5,3886.4,8.8824]
[1762130950344,0.43123258,3886.5,3886.4,0.1624]
[1762130950546,0.43123258,3886.5,3886.4,9.1184]
[1762130951245,0.99518701,3886.5,3886.4,9.1184]
[1762130951639,0.43123258,3886.5,3886.4,9.1184]
[1762130952339,0.99530164,3886.5,3886.4,9.1184]
[1762130954446,0.85640164,3886.5,3886.4,9.1184]
[1762130956453,0.85725208,3886.5,3886.4,9.1184]
[1762130958249,0.99435208,3886.5,3886.4,9.1184]
[1762130959953,1.85750699,3886.5,3886.4,0.1624]
[1762130960148,1.85750699,3886.5,3886.4,8.4374]
[1762130960447,0.1371,3886.0,3885.8,1.84801744]
[1762130960652,0.1371,3886.0,3885.9,9.1179]
[1762130961147,0.4303641,3886.0,3885.9,9.1179]
[1762130961349,0.46325,3885.9,3885.7,1.38475744]
[1762130961648,0.46325,3885.9,3885.8,9.1179]
[1762130961649,1.55430491,3885.9,3885.8,9.1179]
[1762130961853,1.84746045,3885.9,3885.8,9.1179]
[1762130962947,1.84746045,3885.9,3885.8,0.1629]
[1762130963253,0.46328,3885.8,3885.6,3.2078]
[1762130963554,0.69118,3885.8,3885.7,8.863]
[1762130963748,0.98424714,3885.8,3885.7,8.863]
[1762130964152,0.69119,3885.6,3885.5,0.00267507]
[1762130964353,1.84741205,3885.6,3885.5,0.00267507]
[1762130965642,2.41168084,3885.6,3885.5,0.00267507]
[1762130968260,1.84741205,3885.6,3885.5,0.00267507]
[1762130968555,2.41120487,3885.6,3885.5,0.00267507]
[1762130969256,1.84741205,3885.6,3885.5,0.00267507]
[1762130973351,0.29306714,3885.6,3885.5,0.16527507]
[1762130975254,0.52446714,3885.6,3885.5,0.00267507]
[1762130976362,0.29306714,3885.6,3885.5,0.16527507]
[1762130976754,0.52446714,3885.6,3885.5,0.16527507]
[1762130976949,0.52446714,3885.6,3885.5,0.00267507]
[1762130981758,0.52446714,3885.6,3885.5,8.95767507]
[1762130983463,0.52380215,3885.6,3885.5,8.95767507]
[1762130983665,0.52380215,3885.6,3885.5,0.00267507]
[1762130983867,0.52380215,3885.6,3885.5,8.95767507]
[1762130989263,1.08761906,3885.6,3885.5,8.95767507]
[1762130992166,1.08761906,3885.6,3884.8,1.38475744]
[1762130992167,0.219,3884.9,3884.8,1.38475744]
[1762130992366,0.85661675,3884.9,3884.7,0.02574234]
[1762130992565,0.1372,3885.0,3884.9,0.163]
[1762130992762,0.99431079,3885.0,3884.9,0.163]
[1762130993159,0.99431079,3885.0,3884.9,0.16610889]
[1762130995972,0.29284825,3885.0,3884.9,0.16610889]
[1762130998076,0.60051,3885.5,3884.9,0.00310889]
[1762130998275,0.85639123,3885.4,3885.3,0.163]
[1762130998473,0.85639123,3885.4,3885.3,9.117]
[1762131000275,0.85639123,3885.4,3885.3,8.954]
[1762131000276,1.07539123,3885.4,3885.3,8.954]
[1762131000782,0.85639123,3885.4,3885.3,9.117]
[1762131000977,0.29260827,3885.4,3885.3,9.117]
[1762131004478,3.2078,3886.4,3886.3,0.2131]
[1762131004665,3.99034004,3886.4,3886.2,8.954]
[1762131004873,3.99034004,3886.4,3886.2,9.1671]
[1762131004874,0.56354004,3886.3,3886.2,9.1671]
[1762131005377,3.67095,3886.8,3886.4,0.67629]
[1762131005581,0.5634171,3886.7,3886.6,0.2131]
[1762131006068,0.5634171,3886.7,3886.6,3.4209]
[1762131006271,0.46314,3886.9,3886.6,0.2131]
[1762131006473,0.46314,3886.9,3886.5,8.953]
[1762131006474,0.219,3886.6,3886.5,8.953]
[1762131007072,0.46319,3886.4,3886.1,0.46322]
[1762131007377,0.1372,3886.5,3886.2,9.41621]
[1762131007979,0.4632,3886.4,3886.0,0.46324]
[1762131008177,0.4632,3886.4,3886.1,9.41522]
[1762131008570,0.1372,3886.5,3886.2,0.46321]
[1762131008772,0.46319,3886.4,3885.8,3.2078]
[1762131008972,0.1372,3886.5,3885.8,3.2078]
[1762131008973,0.1372,3886.0,3885.9,8.952]
[1762131009178,0.3562,3886.0,3885.9,8.952]
[1762131009380,0.3562,3886.0,3885.8,3.67106]
[1762131009678,0.219,3885.9,3885.8,3.2078]
[1762131009882,0.219,3885.9,3885.8,12.1598]
[1762131010469,0.1372,3886.0,3885.9,0.67635]
[1762131010882,0.1372,3886.0,3885.9,0.2131]
[1762131011180,0.1372,3886.0,3885.8,12.1598]
[1762131011375,0.1372,3886.0,3885.8,12.62306]
[1762131011879,0.1372,3886.0,3885.9,0.2131]
[1762131012081,0.4632,3886.4,3886.0,0.46324]
[1762131012380,0.56144261,3886.3,3886.2,0.2131]
[1762131013382,0.1372,3886.0,3885.8,12.1598]
[1762131013577,0.1372,3886.0,3885.8,3.2078]
[1762131013779,0.1372,3886.0,3885.9,9.1651]
[1762131013976,0.1372,3886.0,3885.9,0.2131]
[1762131014375,0.1372,3886.5,3886.3,0.46319]
[1762131014586,0.1372,3886.5,3886.4,0.2131]
[1762131015176,0.1372,3886.5,3886.0,0.46323]
[1762131015479,0.3562,3886.5,3886.4,0.2163]
[1762131015685,0.1372,3886.5,3886.4,9.1673]
[1762131016677,0.42492915,3886.5,3886.4,9.1673]
[1762131017789,0.28772915,3886.5,3886.4,9.1673]
[1762131017980,1.55170459,3886.9,3886.5,0.46318]
[1762131018183,0.84868221,3886.8,3886.7,0.2163]
[1762131019287,0.1387,3886.5,3886.4,9.1673]
[1762131020088,0.3735,3886.5,3886.4,0.2163]
[1762131020285,0.2348,3886.3,3886.2,3.2078]
[1762131020475,0.2348,3886.3,3885.3,1.38475744]
[1762131020676,0.1387,3886.0,3885.8,0.46326]
[1762131020881,0.1387,3886.0,3885.9,8.951]
[1762131021181,0.1387,3886.0,3885.9,9.1673]
[1762131021783,0.3735,3886.0,3885.9,8.951]
[1762131021984,0.3735,3886.0,3885.7,3.67107]
[1762131022188,0.3735,3886.0,3885.8,9.41326]
[1762131022687,0.3735,3886.0,3885.9,0.2163]
[1762131022884,0.1387,3886.0,3885.9,0.2163]
[1762131023091,0.1387,3886.0,3885.9,9.1663]
[1762131023489,0.3735,3886.0,3885.9,9.1663]
[1762131025280,0.66144891,3886.0,3885.9,9.1663]
[1762131025476,0.1387,3886.5,3886.3,0.46319]
[1762131025690,0.84958126,3886.4,3886.3,0.2247]
[1762131025991,0.28794684,3886.4,3886.3,9.1747]
[1762131027995,0.28794684,3886.4,3886.3,0.2247]
[1762131028191,0.28794684,3886.4,3886.3,9.1747]
[1762131029690,0.50394684,3886.4,3886.3,0.2247]
[1762131029988,0.28794684,3886.4,3886.3,9.1747]
[1762131031693,0.50394684,3886.4,3886.3,8.95]
[1762131031992,0.50394684,3886.4,3886.3,8.949]
[1762131032193,0.85029482,3886.4,3886.3,9.1737]
[1762131032385,0.28794684,3886.4,3886.3,9.1737]
[1762131032892,0.28794684,3886.4,3886.3,0.2247]
[1762131033094,0.28794684,3886.4,3886.3,9.1737]
[1762131040392,0.28794684,3886.4,3886.3,9.1727]
[1762131042395,0.50394684,3886.4,3886.3,9.1727]
[1762131042700,0.4632,3886.3,3886.1,3.2078]
[1762131042888,0.28794684,3886.2,3886.1,3.2078]
[1762131043090,0.28794684,3886.2,3886.1,12.1558]
[1762131043284,0.1414,3886.0,3885.9,0.46325]
[1762131043490,0.42934684,3886.0,3885.9,8.948]
[1762131043990,0.42934684,3886.0,3885.9,9.1727]
[1762131046387,0.42830541,3886.0,3885.9,9.1727]
[1762131046893,0.42830541,3886.0,3885.9,0.2247]
[1762131047097,0.42830541,3886.0,3885.9,9.1727]
[1762131048697,0.42830541,3886.0,3885.9,9.1717]
[1762131048892,0.46327,3885.8,3885.5,1.38475744]
[1762131049099,0.1414,3885.5,3885.3,3.2078]
[1762131049294,0.1414,3885.5,3885.4,8.947]
[1762131049495,0.42830671,3885.5,3885.4,8.947]
[1762131050799,0.42830671,3885.5,3885.3,0.46332]
[1762131050994,0.28690671,3885.4,3885.3,0.46332]
[1762131051194,0.28690671,3885.4,3885.3,9.63972]
[1762131052292,0.60471,3885.5,3885.3,9.1764]
[1762131052798,0.2133,3885.4,3885.3,8.947]
[1762131053100,0.81801,3885.5,3885.4,0.2294]
[1762131053303,1.10465334,3885.5,3885.3,9.41032]
[1762131053508,0.81801,3885.5,3885.3,9.41032]
[1762131053704,0.81801,3885.5,3884.9,3.21090889]
[1762131053999,0.81801,3885.5,3885.2,0.46333]
[1762131055795,0.60471,3885.5,3885.1,0.46334]
[1762131055998,0.60471,3885.5,3885.3,8.948]
[1762131056298,0.1414,3885.5,3885.3,9.41132]
[1762131056804,0.1414,3885.5,3885.3,0.46332]
[1762131057101,0.1414,3885.5,3885.3,9.41132]
[1762131058608,0.6047,3885.5,3885.3,0.46332]
[1762131058907,0.67662,3885.4,3885.3,8.948]
[1762131059911,0.2133,3885.3,3885.2,0.46333]
[1762131060202,0.1414,3885.0,3884.9,0.00310889]
[1762131060403,2.08211816,3885.0,3884.9,0.00310889]
[1762131060603,1.50474862,3885.0,3884.9,0.00310889]
[1762131061407,4.71254862,3885.0,3884.9,0.00310889]
[1762131063012,0.67677,3884.1,3884.0,3.2078]
[1762131063313,0.86370908,3884.3,3884.0,3.2078]
[1762131063502,0.86370908,3884.3,3884.2,0.2294]
[1762131063900,1.32714908,3884.3,3884.2,0.2294]
[1762131064107,1.32904241,3884.3,3884.2,0.23134572]
[1762131064510,1.54234241,3884.3,3884.2,0.23134572]
[1762131064813,1.54234241,3884.3,3884.2,0.00194572]